fUST/lending_fUST_20251010
["ID","MTS","AMOUNT","RATE_DAILY","PERIOD"]
[390473342,1760057448952,-2311.64,0.00017808,2]
[390473344,1760057448964,-2361.34,0.00017808,2]
[390473346,1760057448975,-151.0,0.00017808,2]
[390473348,1760057448986,-151.0,0.00017808,2]
[390473350,1760057448997,-1000.0,0.00017822,2]
[390473352,1760057449008,-1000.0,0.00017822,2]
[390473354,1760057449017,-500.0,0.00017822,2]
[390473356,1760057449027,-249.0,0.00017892,2]
[390473358,1760057449036,-249.0,0.00017899,2]
[390473360,1760057449046,-151.0,0.00017899,2]
[390473362,1760057449056,-151.0,0.00017899,2]
[390473363,1760057449065,-151.0,0.00017899,2]
[390473365,1760057449074,-151.0,0.00017899,2]
[390473368,1760057449084,-174.27456209,0.000179,2]
[390473369,1760057449093,-249.0,0.00017937,2]
[390473371,1760057449102,-500.0,0.00017939,2]
[390473373,1760057449111,-1176.45410288,0.00017984,2]
[390473375,1760057449120,-501.03686346,0.00017987,2]
[390473377,1760057449131,-500.0,0.00017987,2]
[390473379,1760057449140,-498.07791259,0.00017987,2]
[390473381,1760057449150,-500.0,0.00017987,2]
[390473383,1760057449159,-500.0,0.00017987,2]
[390473385,1760057449168,-500.0,0.00017987,2]
[390473387,1760057449178,-500.0,0.00017987,2]
[390473389,1760057449191,-626.82541977,0.00017987,2]
[390473391,1760057449200,-500.0,0.00017987,2]
[390473393,1760057449209,-500.0,0.00017987,2]
[390473395,1760057449219,-197.29710914,0.00018,2]
[390473397,1760057449229,-296.17274288,0.00018,2]
[390473399,1760057449239,-261.45877634,0.00018,2]
[390473401,1760057449248,-1706.35458003,0.00018,2]
[390473403,1760057449259,-866.0637349,0.00018,2]
[390473405,1760057449268,-385.27271916,0.00018,2]
[390473407,1760057449278,-10313.95048709,0.00018,2]
[390473409,1760057449286,-248.045775,0.00018,2]
[390473411,1760057449296,-248.045775,0.00018,2]
[390473413,1760057449305,-248.045775,0.00018,2]
[390473415,1760057449314,-248.045775,0.00018,2]
[390473417,1760057449323,-151.0,0.00018,2]
[390473419,1760057449332,-249.0,0.00018017,2]
[390473421,1760057449341,-249.0,0.00018047,2]
[390473423,1760057449351,-500.0,0.00018081,2]
[390473425,1760057449360,-1580.26,0.00018081,2]
[390473427,1760057449369,-500.0,0.00018081,2]
[390473429,1760057449378,-1519.0,0.00018082,2]
[390473431,1760057449387,-151.0,0.00018082,2]
[390473433,1760057449396,-151.0,0.00018082,2]
[390473435,1760057449405,-151.0,0.00018082,2]
[390473437,1760057449414,-500.0,0.00018082,2]
[390473439,1760057449424,-151.0,0.00018082,2]
[390473441,1760057449432,-244.416,0.00018082,2]
[390473443,1760057449443,-500.0,0.00018082,2]
[390473445,1760057449452,-908.89,0.00018082,2]
[390473447,1760057449462,-563.33,0.00018082,2]
[390473449,1760057449471,-500.0,0.00018082,2]
[390473451,1760057449480,-151.0,0.00018082,2]
[390473453,1760057449489,-199.927806,0.00018082,2]
[390473455,1760057449498,-199.927806,0.00018082,2]
[390473457,1760057449507,-199.927806,0.00018082,2]
[390473459,1760057449518,-199.927806,0.00018082,2]
[390473461,1760057449527,-151.0,0.00018082,2]
[390473463,1760057449537,-554.35,0.00018082,2]
[390473465,1760057449546,-151.0,0.00018082,2]
[390473467,1760057449555,-500.0,0.00018082,2]
[390473469,1760057449564,-630.98,0.00018082,2]
[390473471,1760057449573,-174.78585856,0.00018082,2]
[390473473,1760057449582,-500.0,0.00018082,2]
[390473475,1760057449592,-500.0,0.00018082,2]
[390473477,1760057449601,-500.0,0.00018082,2]
[390473479,1760057449610,-563.83,0.00018082,2]
[390473481,1760057449620,-1127.03,0.00018082,2]
[390473483,1760057449629,-4209.91,0.00018082,2]
[390473485,1760057449639,-672.58,0.00018082,2]
[390473487,1760057449648,-500.0,0.00018082,2]
[390473489,1760057449658,-3429.25,0.00018082,2]
[390473491,1760057449667,-500.0,0.00018082,2]
[390473493,1760057449676,-500.0,0.00018082,2]
[390473495,1760057449685,-500.0,0.00018082,2]
[390473497,1760057449695,-500.0,0.00018082,2]
[390473499,1760057449704,-640.91,0.00018082,2]
[390473501,1760057449714,-500.0,0.00018082,2]
[390473503,1760057449723,-500.0,0.00018082,2]
[390473505,1760057449732,-627.01,0.00018082,2]
[390473507,1760057449741,-776.73,0.00018082,2]
[390473509,1760057449750,-500.0,0.00018082,2]
[390473511,1760057449759,-3296.1,0.00018082,2]
[390473513,1760057449768,-500.0,0.00018082,2]
[390473515,1760057449777,-2970.05,0.00018082,2]
[390473517,1760057449787,-500.0,0.00018082,2]
[390473519,1760057449796,-2823.46,0.00018082,2]
[390473521,1760057449805,-551.15,0.00018082,2]
[390473523,1760057449814,-646.41,0.00018082,2]
[390473525,1760057449823,-500.0,0.00018082,2]
[390473527,1760057449833,-1174.04,0.00018082,2]
[390473529,1760057449842,-995.84,0.00018082,2]
[390473531,1760057449851,-588.91,0.00018082,2]
[390473533,1760057449860,-500.0,0.00018082,2]
[390473535,1760057449868,-500.0,0.00018082,2]
[390473536,1760057449878,-500.0,0.00018082,2]
[390473538,1760057449887,-500.0,0.00018082,2]
[390473541,1760057449896,-500.0,0.00018082,2]
[390473543,1760057449906,-1161.55,0.00018082,2]
[390473545,1760057449916,-500.0,0.00018082,2]
[390473546,1760057449925,-1086.11,0.00018082,2]
[390473548,1760057449935,-500.0,0.00018082,2]
[390473550,1760057449945,-526.6,0.00018082,2]
[390473552,1760057449955,-151.0,0.00018082,2]
[390473554,1760057449964,-151.0,0.00018082,2]
[390473556,1760057449974,-1923.92,0.00018082,2]
[390473558,1760057449983,-500.0,0.00018082,2]
[390473560,1760057449993,-151.0,0.00018082,2]
[390473562,1760057450002,-500.0,0.00018082,2]
[390473565,1760057450013,-151.0,0.00018082,2]
[390473566,1760057450023,-151.0,0.00018082,2]
[390473568,1760057450032,-500.0,0.00018082,2]
[390473570,1760057450042,-500.0,0.00018082,2]
[390473572,1760057450051,-1036.26,0.00018082,2]
[390473574,1760057450061,-500.0,0.00018082,2]
[390473577,1760057450072,-1093.78,0.00018082,2]
[390473578,1760057450082,-151.0,0.00018082,2]
[390473580,1760057450092,-151.0,0.00018082,2]
[390473583,1760057450102,-1206.25,0.00018082,2]
[390473585,1760057450112,-1264.07,0.00018082,2]
[390473586,1760057450121,-151.0,0.00018082,2]
[390473589,1760057450131,-151.0,0.00018082,2]
[390473591,1760057450141,-151.0,0.00018082,2]
[390473593,1760057450151,-180.41845,0.00018082,2]
[390473594,1760057450161,-2311.64,0.00018082,2]
[390473597,1760057450171,-2361.34,0.00018082,2]
[390473598,1760057450184,-249.0,0.00018135,2]
[390473600,1760057450195,-554.15643323,0.00018137,2]
[390473602,1760057450204,-197.29710914,0.000182,2]
[390473604,1760057450213,-1706.35458003,0.000182,2]
[390473606,1760057450223,-866.0637349,0.000182,2]
[390473608,1760057450233,-385.27271916,0.000182,2]
[390473610,1760057450242,-10313.95048709,0.000182,2]
[390473612,1760057450251,-151.0,0.000182,2]
[390473614,1760057450261,-500.0,0.00018206,2]
[390473616,1760057450270,-642.46180802,0.00018206,2]
[390473618,1760057450279,-500.0,0.00018213,2]
[390473620,1760057450289,-174.0,0.00018274,3]
[390473622,1760057450298,-249.0,0.00018311,2]
[390473624,1760057450307,-1500.0,0.00018315,2]
[390473626,1760057450318,-1502.06029178,0.00018315,2]
[390473628,1760057450327,-1500.0,0.00018315,2]
[390473630,1760057450336,-1500.0,0.00018315,2]
[390473632,1760057450346,-1500.0,0.00018315,2]
[390473634,1760057450354,-1500.0,0.00018315,2]
[390473636,1760057450364,-1004.17968185,0.00018315,2]
[390473638,1760057450372,-1500.0,0.00018315,2]
[390473640,1760057450381,-1500.0,0.00018315,2]
[390473642,1760057450390,-500.0,0.00018355,2]
[390473644,1760057450399,-1580.26,0.00018355,2]
[390473646,1760057450408,-500.0,0.00018355,2]
[390473648,1760057450418,-1519.0,0.00018356,2]
[390473650,1760057450426,-151.0,0.00018356,2]
[390473652,1760057450435,-151.0,0.00018356,2]
[390473654,1760057450445,-151.0,0.00018356,2]
[390473656,1760057450454,-500.0,0.00018356,2]
[390473658,1760057450463,-500.0,0.00018356,2]
[390473660,1760057450472,-908.89,0.00018356,2]
[390473662,1760057450481,-563.33,0.00018356,2]
[390473664,1760057450491,-500.0,0.00018356,2]
[390473665,1760057450499,-554.35,0.00018356,2]
[390473667,1760057450509,-151.0,0.00018356,2]
[390473669,1760057450518,-465.05299477,0.00018356,2]
[390473672,1760057450528,-630.98,0.00018356,2]
[390473673,1760057450537,-500.0,0.00018356,2]
[390473675,1760057450546,-500.0,0.00018356,2]
[390473677,1760057450555,-248.045775,0.00018356,2]
[390473679,1760057450564,-248.045775,0.00018356,2]
[390473681,1760057450573,-248.045775,0.00018356,2]
[390473683,1760057450582,-248.045775,0.00018356,2]
[390473685,1760057450593,-500.0,0.00018356,2]
[390473687,1760057450602,-151.0,0.00018356,2]
[390473689,1760057450611,-563.83,0.00018356,2]
[390473691,1760057450625,-1127.03,0.00018356,2]
[390473693,1760057450634,-4209.91,0.00018356,2]
[390473695,1760057450643,-672.58,0.00018356,2]
[390473697,1760057450652,-500.0,0.00018356,2]
[390473699,1760057450662,-3429.25,0.00018356,2]
[390473701,1760057450671,-500.0,0.00018356,2]
[390473703,1760057450680,-500.0,0.00018356,2]
[390473705,1760057450690,-500.0,0.00018356,2]
[390473707,1760057450703,-500.0,0.00018356,2]
[390473709,1760057450712,-151.0,0.00018356,2]
[390473711,1760057450721,-640.91,0.00018356,2]
[390473713,1760057450729,-500.0,0.00018356,2]
[390473715,1760057450738,-500.0,0.00018356,2]
[390473717,1760057450747,-627.01,0.00018356,2]
[390473719,1760057450757,-151.0,0.00018356,2]
[390473721,1760057450766,-776.73,0.00018356,2]
[390473723,1760057450775,-235.937385,0.00018356,2]
[390473725,1760057450785,-500.0,0.00018356,2]
[390473727,1760057450795,-3296.1,0.00018356,2]
[390473729,1760057450804,-500.0,0.00018356,2]
[390473731,1760057450813,-2970.05,0.00018356,2]
[390473733,1760057450822,-500.0,0.00018356,2]
[390473735,1760057450831,-2823.46,0.00018356,2]
[390473737,1760057450841,-551.15,0.00018356,2]
[390473739,1760057450851,-646.41,0.00018356,2]
[390473745,1760057450900,-500.0,0.00018356,2]
[390473747,1760057450910,-1174.04,0.00018356,2]
[390473749,1760057450919,-995.84,0.00018356,2]
[390473750,1760057450928,-588.91,0.00018356,2]
[390473752,1760057450938,-500.0,0.00018356,2]
[390473754,1760057450948,-500.0,0.00018356,2]
[390473756,1760057450957,-500.0,0.00018356,2]
[390473758,1760057450967,-500.0,0.00018356,2]
[390473760,1760057450977,-500.0,0.00018356,2]
[390473762,1760057450986,-1161.55,0.00018356,2]
[390473764,1760057450996,-500.0,0.00018356,2]
[390473766,1760057451006,-1086.11,0.00018356,2]
[390473768,1760057451015,-500.0,0.00018356,2]
[390473770,1760057451025,-526.6,0.00018356,2]
[390473772,1760057451033,-1923.92,0.00018356,2]
[390473774,1760057451043,-625.19998391,0.00018356,2]
[390473776,1760057451053,-500.0,0.00018356,2]
[390473778,1760057451062,-500.0,0.00018356,2]
[390473780,1760057451071,-500.0,0.00018356,2]
[390473782,1760057451081,-1036.26,0.00018356,2]
[390473784,1760057451090,-500.0,0.00018356,2]
[390473786,1760057451099,-1093.78,0.00018356,2]
[390473788,1760057451109,-1206.25,0.00018356,2]
[390473790,1760057451118,-1264.07,0.00018356,2]
[390473792,1760057451127,-2311.64,0.00018356,2]
[390473794,1760057451137,-2361.34,0.00018356,2]
[390473796,1760057451146,-249.0,0.00018358,2]
[390473797,1760057451154,-415.83126983,0.0001837,2]
[390473798,1760057451163,-1500.0,0.0001837,2]
[390473799,1760057451172,-197.29710914,0.000184,2]
[390473800,1760057451184,-1706.35458003,0.000184,2]
[390473801,1760057451194,-866.0637349,0.000184,2]
[390473802,1760057451203,-385.27271916,0.000184,2]
[390473803,1760057451212,-10313.95048709,0.000184,2]
[390473804,1760057451222,-151.0,0.000184,2]
[390473805,1760057451231,-199.927806,0.000184,2]
[390473806,1760057451240,-199.927806,0.000184,2]
[390473807,1760057451249,-199.927806,0.000184,2]
[390473808,1760057451258,-199.927806,0.000184,2]
[390473809,1760057451268,-151.0,0.000184,2]
[390473810,1760057451277,-151.0,0.000184,2]
[390473811,1760057451286,-720.0,0.00018442,2]
[390473812,1760057451295,-169.4803197,0.0001845,2]
[390473813,1760057451304,-500.0,0.00018487,2]
[390473814,1760057451314,-197.29710914,0.000185,2]
[390473815,1760057451323,-1706.35458003,0.000185,2]
[390473816,1760057451332,-866.0637349,0.000185,2]
[390473817,1760057451341,-385.27271916,0.000185,2]
[390473818,1760057451350,-10313.95048709,0.000185,2]
[390473819,1760057451359,-151.0,0.000185,2]
[390473820,1760057451369,-151.0,0.000185,2]
[390473822,1760057451378,-281.34288,0.000185,2]
[390473824,1760057451387,-151.0,0.000185,2]
[390473826,1760057451397,-151.0,0.000185,2]
[390473828,1760057451407,-151.0,0.000185,2]
[390473830,1760057451416,-151.0,0.000185,2]
[390473832,1760057451427,-151.0,0.000185,2]
[390473834,1760057451437,-500.0,0.00018535,2]
[390473836,1760057451448,-1000.0,0.00018535,2]
[390473838,1760057451457,-1000.0,0.00018535,2]
[390473840,1760057451466,-500.0,0.00018535,2]
[390473842,1760057451475,-1000.0,0.00018535,2]
[390473844,1760057451485,-249.0,0.00018546,2]
[390473846,1760057451494,-618.460853,0.00018573,2]
[390473847,1760057451504,-265.607767,0.00018573,2]
[390473850,1760057451514,-1498.35633883,0.00018602,2]
[390473851,1760057451523,-249.0,0.00018619,2]
[390473853,1760057451532,-500.0,0.00018629,2]
[390473855,1760057451542,-1580.26,0.00018629,2]
[390473857,1760057451552,-500.0,0.00018629,2]
[390473860,1760057451561,-1519.0,0.0001863,2]
[390473861,1760057451571,-151.0,0.0001863,2]
[390473863,1760057451581,-151.0,0.0001863,2]
[390473865,1760057451591,-500.0,0.0001863,2]
[390473867,1760057451601,-500.0,0.0001863,2]
[390473869,1760057451610,-908.89,0.0001863,2]
[390473871,1760057451623,-563.33,0.0001863,2]
[390473874,1760057451633,-500.0,0.0001863,2]
[390473875,1760057451643,-151.0,0.0001863,2]
[390473878,1760057451653,-554.35,0.0001863,2]
[390473879,1760057451663,-630.98,0.0001863,2]
[390473882,1760057451672,-500.0,0.0001863,2]
[390473883,1760057451682,-223.57010379,0.0001863,2]
[390473885,1760057451691,-248.045775,0.0001863,2]
[390473887,1760057451701,-248.045775,0.0001863,2]
[390473890,1760057451712,-248.045775,0.0001863,2]
[390473892,1760057451723,-248.045782,0.0001863,2]
[390473893,1760057451733,-500.0,0.0001863,2]
[390473896,1760057451743,-563.83,0.0001863,2]
[390473898,1760057451753,-1127.03,0.0001863,2]
[390473900,1760057451763,-4209.91,0.0001863,2]
[390473902,1760057451773,-672.58,0.0001863,2]
[390473904,1760057451782,-500.0,0.0001863,2]
[390473906,1760057451792,-3429.25,0.0001863,2]
[390473907,1760057451801,-500.0,0.0001863,2]
[390473909,1760057451811,-500.0,0.0001863,2]
[390473911,1760057451821,-500.0,0.0001863,2]
[390473913,1760057451830,-500.0,0.0001863,2]
[390473915,1760057451840,-151.0,0.0001863,2]
[390473917,1760057451849,-640.91,0.0001863,2]
[390473919,1760057451858,-500.0,0.0001863,2]
[390473921,1760057451867,-500.0,0.0001863,2]
[390473923,1760057451876,-627.01,0.0001863,2]
[390473925,1760057451884,-151.0,0.0001863,2]
[390473927,1760057451894,-776.73,0.0001863,2]
[390473929,1760057451903,-500.0,0.0001863,2]
[390473931,1760057451913,-3296.1,0.0001863,2]
[390473933,1760057451922,-500.0,0.0001863,2]
[390473935,1760057451931,-2970.05,0.0001863,2]
[390473937,1760057451941,-500.0,0.0001863,2]
[390473939,1760057451950,-2823.46,0.0001863,2]
[390473940,1760057451959,-551.15,0.0001863,2]
[390473942,1760057451968,-646.41,0.0001863,2]
[390473944,1760057451977,-500.0,0.0001863,2]
[390473946,1760057451986,-1174.04,0.0001863,2]
[390473948,1760057451995,-995.84,0.0001863,2]
[390473950,1760057452004,-588.91,0.0001863,2]
[390473952,1760057452013,-500.0,0.0001863,2]
[390473954,1760057452022,-500.0,0.0001863,2]
[390473956,1760057452031,-500.0,0.0001863,2]
[390473958,1760057452041,-500.0,0.0001863,2]
[390473960,1760057452049,-500.0,0.0001863,2]
[390473962,1760057452059,-1161.55,0.0001863,2]
[390473964,1760057452068,-500.0,0.0001863,2]
[390473966,1760057452077,-500.0,0.0001863,2]
[390473968,1760057452086,-526.6,0.0001863,2]
[390473970,1760057452095,-1923.92,0.0001863,2]
[390473972,1760057452105,-1086.11,0.0001863,2]
[390473974,1760057452114,-500.0,0.0001863,2]
[390473976,1760057452123,-524.9,0.0001863,2]
[390473978,1760057452133,-500.0,0.0001863,2]
[390473980,1760057452142,-1036.26,0.0001863,2]
[390473982,1760057452151,-500.0,0.0001863,2]
[390473984,1760057452161,-1093.78,0.0001863,2]
[390473986,1760057452170,-1206.25,0.0001863,2]
[390473988,1760057452183,-1264.07,0.0001863,2]
[390473990,1760057452198,-1308.2102967,0.00018631,2]
[390473992,1760057452208,-5044.8136453,0.00018631,2]
[390473994,1760057452217,-3083.1783886,0.00018631,2]
[390473996,1760057452229,-162.576048,0.00018631,2]
[390473998,1760057452238,-151.0,0.00018653,2]
[390474000,1760057452247,-5888.0,0.00018653,2]
[390474002,1760057452259,-1209.88045023,0.00018674,2]
[390474004,1760057452269,-600.0,0.00018674,2]
[390474006,1760057452278,-1706.35458003,0.000187,2]
[390474008,1760057452288,-866.0637349,0.000187,2]
[390474010,1760057452298,-385.27271916,0.000187,2]
[390474012,1760057452307,-10313.95048709,0.000187,2]
[390474014,1760057452317,-151.0,0.000187,2]
[390474016,1760057452327,-160.0,0.00018704,2]
[390474017,1760057452336,-611.4829608,0.00018737,2]
[390474019,1760057452346,-213.991,0.00018739,2]
[390474021,1760057452356,-249.0,0.00018741,2]
[390474023,1760057452365,-249.0,0.00018749,2]
[390474025,1760057452375,-500.0,0.0001876,2]
[390474027,1760057452384,-176.96952832,0.00018804,2]
[390474029,1760057452394,-249.0,0.00018839,2]
[390474031,1760057452404,-230.859745,0.00018862,2]
[390474033,1760057452414,-2000.0,0.00018863,2]
[390474035,1760057452423,-2000.0,0.00018863,2]
[390474037,1760057452433,-500.0,0.00018863,2]
[390474040,1760057452443,-2000.0,0.00018863,2]
[390474041,1760057452453,-2000.0,0.00018863,2]
[390474043,1760057452463,-500.0,0.00018863,2]
[390474045,1760057452473,-2000.0,0.00018863,2]
[390474047,1760057452483,-600.0,0.00018868,2]
[390474049,1760057452494,-1176.45410288,0.00018896,2]
[390474052,1760057452505,-10313.95048709,0.000189,2]
[390474053,1760057452515,-500.0,0.00018903,2]
[390474056,1760057452526,-1580.26,0.00018903,2]
[390474058,1760057452536,-500.0,0.00018903,2]
[390474059,1760057452545,-1519.0,0.00018904,2]
[390474061,1760057452556,-151.0,0.00018904,2]
[390474063,1760057452566,-151.0,0.00018904,2]
[390474065,1760057452577,-151.0,0.00018904,2]
[390474068,1760057452587,-500.0,0.00018904,2]
[390474070,1760057452597,-500.0,0.00018904,2]
[390474072,1760057452608,-908.89,0.00018904,2]
[390474073,1760057452618,-563.33,0.00018904,2]
[390474075,1760057452628,-500.0,0.00018904,2]
[390474077,1760057452639,-199.927806,0.00018904,2]
[390474079,1760057452650,-199.927806,0.00018904,2]
[390474081,1760057452661,-199.927806,0.00018904,2]
[390474084,1760057452671,-199.927813,0.00018904,2]
[390474086,1760057452680,-554.35,0.00018904,2]
[390474087,1760057452692,-630.98,0.00018904,2]
[390474090,1760057452703,-500.0,0.00018904,2]
[390474092,1760057452714,-500.0,0.00018904,2]
[390474094,1760057452724,-563.83,0.00018904,2]
[390474096,1760057452735,-1127.03,0.00018904,2]
[390474098,1760057452745,-4209.91,0.00018904,2]
[390474100,1760057452756,-672.58,0.00018904,2]
[390474102,1760057452767,-500.0,0.00018904,2]
[390474103,1760057452778,-3429.25,0.00018904,2]
[390474106,1760057452788,-500.0,0.00018904,2]
[390474107,1760057452799,-500.0,0.00018904,2]
[390474109,1760057452808,-500.0,0.00018904,2]
[390474111,1760057452819,-500.0,0.00018904,2]
[390474113,1760057452829,-640.91,0.00018904,2]
[390474115,1760057452840,-500.0,0.00018904,2]
[390474117,1760057452850,-220.68643368,0.00018904,2]
[390474157,1760057453266,-151.0,0.00016986,2]
[390474159,1760057453278,-208.50100004,0.0001863,2]
[390474185,1760057453521,-50.1549721,0.00016438,2]
[390474193,1760057453595,-449.8450279,0.00016438,2]
[390474195,1760057453606,-1359.26595475,0.0001863,2]
[390474198,1760057453625,-500.0,0.00016438,2]
[390474200,1760057453636,-743.87304521,0.0001863,2]
[390474202,1760057453645,-953.98756406,0.0001863,2]
[390474204,1760057453658,-1407.35243594,0.0001863,2]
[390474206,1760057453668,-279.31356632,0.00018904,2]
[390474208,1760057453678,-627.01,0.00018904,2]
[390474211,1760057453688,-776.73,0.00018904,2]
[390474213,1760057453699,-500.0,0.00018904,2]
[390474215,1760057453710,-84.95903896,0.00018904,2]
[390474217,1760057453724,-2444.57529979,0.00018904,2]
[390474340,1760057455041,-766.56566125,0.00018904,2]
[390474342,1760057455050,-500.0,0.00018904,2]
[390474344,1760057455059,-2836.45370611,0.00018904,2]
[390475740,1760057470417,2725.7,0.00028767,120]
[390476407,1760057571019,189.719833,0.00018975,20]
[390476408,1760057571450,189.719833,0.000189,20]
[390476412,1760057614777,3000.0,0.00024,30]
[390476413,1760057618867,459.428062,0.00018975,20]
[390476414,1760057619277,459.428062,0.000189,20]
[390476419,1760058026113,150.0,0.00015571,2]
[390476427,1760058219071,539.196891,0.00018975,20]
[390476428,1760058219508,539.196891,0.000189,20]
[390476430,1760058224540,2000.0,0.00028767,120]
[390476431,1760058228440,254.28537,0.00018975,20]
[390476432,1760058228854,254.28537,0.000189,20]
[390476433,1760058237620,2000.0,0.00028767,120]
[390476434,1760058248343,2000.0,0.00028767,120]
[390476435,1760058265375,200.0,0.00028767,120]
[390476436,1760058276444,2000.0,0.00028767,120]
[390476438,1760058286157,2000.0,0.00028767,120]
[390476439,1760058295212,2000.0,0.00028767,120]
[390476440,1760058313466,1594.56,0.00028767,120]
[390476480,1760058632393,-374.53331349,0.00016336,2]
[390476481,1760058632403,-152.99454616,0.00016338,2]
[390476482,1760058632413,-151.0,0.00016428,2]
[390476483,1760058632423,-500.0,0.00016437,2]
[390476484,1760058632433,-291.97963608,0.00016437,2]
[390476485,1760058632443,-300.0,0.00016437,2]
[390476486,1760058632453,-500.0,0.00016438,2]
[390476488,1760058632463,-429.07216853,0.00016438,2]
[390476490,1760058632473,-500.0,0.00016438,2]
[390476492,1760058632483,-500.0,0.00016438,2]
[390476494,1760058632493,-500.0,0.00016438,2]
[390476496,1760058632503,-500.0,0.00016438,2]
[390476498,1760058632514,-500.0,0.00016438,2]
[390476500,1760058632524,-500.0,0.00016438,2]
[390476502,1760058632534,-345.11939522,0.00016438,2]
[390476504,1760058632544,-520.0,0.00016438,3]
[390476506,1760058632554,-500.0,0.00016438,2]
[390476509,1760058632564,-500.0,0.00016438,2]
[390476512,1760058632574,-500.0,0.00016438,2]
[390476515,1760058632584,-500.0,0.00016438,2]
[390476517,1760058632594,-500.0,0.00016438,2]
[390476519,1760058632604,-500.0,0.00016438,2]
[390476521,1760058632614,-1000.0,0.00016438,2]
[390476523,1760058632624,-500.0,0.00016438,2]
[390476525,1760058632634,-500.0,0.00016438,2]
[390476527,1760058632644,-500.0,0.00016438,2]
[390476530,1760058632653,-500.0,0.00016438,2]
[390476533,1760058632663,-500.0,0.00016438,2]
[390476535,1760058632672,-202.18,0.00016438,2]
[390476537,1760058632682,-295.28,0.00016438,2]
[390476539,1760058632691,-558.26,0.00016438,2]
[390476541,1760058632700,-908.65,0.00016438,2]
[390476543,1760058632710,-381.54414387,0.00016438,2]
[390476545,1760058632720,-500.0,0.00016438,2]
[390476547,1760058632729,-500.0,0.00016438,2]
[390476549,1760058632738,-539.86,0.00016438,2]
[390476551,1760058632749,-430.0513817,0.00016438,2]
[390476554,1760058632759,-500.0,0.00016438,2]
[390476556,1760058632773,-500.0,0.00016438,2]
[390476558,1760058632783,-500.0,0.00016438,2]
[390476560,1760058632793,-459.14,0.00016438,2]
[390476562,1760058632803,-500.0,0.00016438,2]
[390476563,1760058632813,-574.12,0.00016438,2]
[390476565,1760058632822,-500.0,0.00016438,2]
[390476567,1760058632832,-629.11529255,0.00016438,2]
[390476569,1760058632842,-500.0,0.00016438,2]
[390476571,1760058632852,-500.0,0.00016438,2]
[390476573,1760058632861,-500.0,0.00016438,2]
[390476575,1760058632871,-500.0,0.00016438,2]
[390476577,1760058632880,-500.0,0.00016438,2]
[390476579,1760058632889,-500.0,0.00016438,2]
[390476581,1760058632898,-500.0,0.00016438,2]
[390476583,1760058632907,-500.0,0.00016438,2]
[390476585,1760058632917,-486.71255834,0.00016438,2]
[390476587,1760058632926,-500.0,0.00016438,2]
[390476589,1760058632936,-500.0,0.00016438,2]
[390476591,1760058632946,-500.0,0.00016438,2]
[390476593,1760058632955,-500.0,0.00016438,2]
[390476595,1760058632965,-500.0,0.00016438,2]
[390476597,1760058632975,-282.25276632,0.00016438,2]
[390477055,1760058638291,-217.74723368,0.00016438,2]